fUSD/lending_fUSD_20240920
["ID","MTS","AMOUNT","RATE_DAILY","PERIOD"]
[338611020,1726790431307,150.0,0.00017372,120]
[338611021,1726790490741,150.0,0.00018109,120]
[338611022,1726790492860,254.41,0.00012506,2]
[338611023,1726790550776,150.0,0.00021968,120]
[338611024,1726790649633,161.32,0.00012047,2]
[338611025,1726790676355,155.87,0.0001246,2]
[338611026,1726790676557,155.87,0.00012464,2]
[338611027,1726790676775,155.87,0.00012468,2]
[338611028,1726790676971,155.87,0.00012471,2]
[338611029,1726790677187,155.87,0.00012475,2]
[338611030,1726790677397,155.87,0.00012479,2]
[338611031,1726790677610,155.87,0.00012482,2]
[338611032,1726790677823,155.87,0.00012486,2]
[338611033,1726790678052,155.87,0.0001249,2]
[338611034,1726790678286,155.87,0.00012493,2]
[338611035,1726790678548,155.87,0.00012497,2]
[338611036,1726790678768,155.87,0.00012501,2]
[338611037,1726790679043,155.87,0.00012504,2]
[338611038,1726790679256,155.87,0.00012508,2]
[338611039,1726790679466,155.87,0.00012512,2]
[338611040,1726790679704,155.87,0.00012515,2]
[338611041,1726790680072,155.87,0.00012519,2]
[338611042,1726790680192,155.87,0.00012523,2]
[338611043,1726790728140,477.7,0.00010545,2]
[338611044,1726790779554,1600.0,0.00022,60]
[338611045,1726790790703,150.0,0.00018066,120]
[338611046,1726790800308,160.0,0.00012742,2]
[338611047,1726790852096,250.0,0.00012433,2]
[338611048,1726790855354,500.0,0.00022999,120]
[338611049,1726790866409,293.86364086,0.00012436,2]
[338611050,1726790866434,546.13635914,0.00012436,2]
[338611051,1726790875663,2050.38425655,0.00022,60]
[338611052,1726790905557,150.0,0.000127,2]
[338611053,1726790924371,150.0,0.000127,2]
[338611054,1726790944034,200.0,0.00012387,2]
[338611055,1726790970742,150.0,0.0002019,120]
[338611057,1726791031855,-247.38581052,0.00012773,2]
[338611058,1726791031866,-150.0,0.00012794,2]
[338611059,1726791031877,-475.34,0.00012799,2]
[338611060,1726791031888,-179.888,0.00012799,2]
[338611061,1726791031898,-150.0,0.00012799,2]
[338611062,1726791031909,-500.0,0.000128,2]
[338611063,1726791031919,-13520.77283274,0.000128,2]
[338611064,1726791031931,-2534.578025,0.000128,2]
[338611065,1726791031943,-377.86782155,0.000128,2]
[338611066,1726791031954,-2866.79326602,0.000128,2]
[338611067,1726791031965,-1891.96129736,0.000128,2]
[338611068,1726791031977,-4939.69147395,0.000128,2]
[338611069,1726791031990,-463.05,0.000128,2]
[338611070,1726791032004,-1015.81727259,0.000128,2]
[338611071,1726791032066,-13591.56720858,0.000128,2]
[338611072,1726791032077,-186445.4666203,0.000128,2]
[338611086,1726791037957,-828.23841655,0.000128,2]
[338611087,1726791037970,-1115.71313362,0.000128,2]
[338611088,1726791037983,-1316.73252248,0.000128,2]
[338611089,1726791038012,-399.4585234,0.000128,2]
[338611090,1726791038066,-281.95025143,0.000128,2]
[338611127,1726791042086,-8215.81430112,0.000128,2]
[338611129,1726791042139,-1626.45291562,0.000128,2]
[338611130,1726791042152,-470.73536654,0.000128,2]
[338611131,1726791042164,-937.2024651,0.000128,2]
[338611132,1726791042244,-3172.05138762,0.000128,2]
[338611133,1726791042258,-8395.8468521,0.000128,2]
[338611134,1726791042270,-493.47746496,0.000128,2]
[338611135,1726791042283,-899.02754983,0.000128,2]
[338611136,1726791042295,-1034.355,0.000128,2]
[338611137,1726791042308,-495.25624919,0.000128,2]
[338611138,1726791042351,-971.108,0.000128,2]
[338611139,1726791042364,-1504.411741,0.000128,2]
[338611192,1726791043094,-44486.32974584,0.000128,2]
[338611196,1726791043116,-103767.30000095,0.000128,2]
[338611264,1726791045860,-258.06004,0.000128,2]
[338611265,1726791046020,-1082.61991605,0.000128,2]
[338611266,1726791046032,-850.00918047,0.000128,2]
[338611267,1726791046044,-264.37005527,0.000128,2]
[338611268,1726791046072,-4094.45705533,0.000128,2]
[338611269,1726791046196,-1130.07324647,0.000128,2]
[338611272,1726791062839,150.0,0.00010959,2]
[338611273,1726791062859,150.0,0.00010959,2]
[338611274,1726791062880,56.68,0.00010959,2]
[338611276,1726791144546,150.0,0.00012638,2]
[338611277,1726791151201,890.64785471,0.000127,2]
[338611278,1726791151227,1531.88092317,0.000127,2]
[338611279,1726791153086,150.0,0.00012684,2]
[338611280,1726791211282,150.0,0.00015653,120]
[338611281,1726791220717,2835.2968292,0.0001216,2]
[338611282,1726791233312,150.0,0.00012342,2]
[338611283,1726791233337,11.32,0.00012342,2]
[338611284,1726791235965,199.42469731,0.000127,2]
[338611285,1726791251058,500.0,0.00011164,2]
[338611286,1726791252309,395.9128,0.000127,2]
[338611287,1726791270712,150.0,0.00022808,120]
[338611288,1726791273400,150.0,0.00010504,2]
[338611289,1726791273422,150.0,0.00010504,2]
[338611290,1726791273443,150.0,0.00010504,2]
[338611291,1726791273464,126.55,0.00010504,2]
[338611292,1726791277699,150.0,0.00010068,2]
[338611293,1726791277720,150.0,0.00010068,2]
[338611294,1726791277741,150.0,0.00010068,2]
[338611295,1726791277762,50.0,0.00010068,2]
[338611296,1726791278575,109.60007761,0.00011164,2]
[338611297,1726791278596,150.0,0.00011164,2]
[338611298,1726791278616,150.0,0.00011164,2]
[338611299,1726791278636,90.39992239,0.00011164,2]
[338611300,1726791280276,59.60007761,0.00012382,2]
[338611301,1726791280296,150.0,0.00012382,2]
[338611302,1726791280316,150.0,0.00012382,2]
[338611303,1726791280339,1450.24992239,0.00012382,2]
[338611304,1726791294277,150.0,0.00012367,2]
[338611305,1726791294298,150.0,0.00012367,2]
[338611306,1726791294319,150.0,0.00012367,2]
[338611307,1726791294340,150.0,0.00012367,2]
[338611308,1726791294361,150.0,0.00012367,2]
[338611309,1726791294382,150.0,0.00012367,2]
[338611310,1726791294404,150.0,0.00012367,2]
[338611311,1726791294424,150.0,0.00012367,2]
[338611312,1726791294446,150.0,0.00012367,2]
[338611313,1726791294467,150.0,0.00012367,2]
[338611314,1726791294487,150.0,0.00012367,2]
[338611315,1726791294508,150.0,0.00012367,2]
[338611316,1726791294529,150.0,0.00012367,2]
[338611317,1726791294742,150.0,0.00012367,2]
[338611318,1726791294765,150.0,0.00012367,2]
[338611319,1726791294788,150.0,0.00012367,2]
[338611320,1726791294809,150.0,0.00012367,2]
[338611321,1726791294832,150.0,0.00012367,2]
[338611322,1726791294853,150.0,0.00012367,2]
[338611323,1726791294873,150.0,0.00012367,2]
[338611324,1726791294895,150.0,0.00012367,2]
[338611325,1726791294920,150.0,0.00012367,2]
[338611326,1726791294941,150.0,0.00012367,2]
[338611327,1726791294963,150.0,0.00012367,2]
[338611328,1726791294985,150.0,0.00012367,2]
[338611329,1726791295010,20150.0,0.00012367,2]
[338611330,1726791302443,157.73970547,0.00012699,2]
[338611331,1726791318650,150.0,0.000127,2]
[338611332,1726791328945,150.0,0.000127,2]
[338611333,1726791328967,150.0,0.000127,2]
[338611334,1726791328989,150.0,0.000127,2]
[338611335,1726791329011,150.0,0.000127,2]
[338611336,1726791329033,150.0,0.000127,2]
[338611337,1726791329057,150.0,0.000127,2]
[338611338,1726791329077,173.45,0.000127,2]
[338611339,1726791329100,1593.94365178,0.000127,2]
[338611340,1726791329457,223.77,0.00010959,2]
[338611341,1726791348191,154.76,0.0001235,2]
[338611342,1726791353660,591.52,0.0001235,2]
[338611343,1726791354098,591.52,0.00012354,2]
[338611344,1726791354313,591.52,0.00012357,2]
[338611345,1726791354525,591.52,0.0001236,2]
[338611346,1726791354758,591.52,0.00012363,2]
[338611347,1726791355004,591.52,0.00012367,2]
[338611348,1726791355221,591.52,0.0001237,2]
[338611349,1726791355441,591.52,0.00012373,2]
[338611350,1726791355689,591.52,0.00012376,2]
[338611351,1726791356217,591.52,0.0001238,2]
[338611352,1726791356648,591.52,0.00012383,2]
[338611353,1726791357016,591.52,0.00012386,2]
[338611354,1726791357253,591.52,0.00012389,2]
[338611355,1726791357483,591.52,0.00012393,2]
[338611356,1726791357708,591.52,0.00012396,2]
[338611357,1726791357976,591.52,0.00012399,2]
[338611358,1726791358373,591.52,0.00012402,2]
[338611359,1726791358670,591.52,0.00012406,2]
[338611360,1726791358925,591.52,0.00012409,2]
[338611361,1726791359207,591.52,0.00012412,2]
[338611362,1726791390723,150.0,0.00018239,120]
[338611363,1726791398587,1852.42,0.00012354,2]
[338611364,1726791435259,250.0,0.00012354,2]
[338611365,1726791450759,150.0,0.00015277,120]
[338611366,1726791455594,328.0,0.00012361,2]
[338611367,1726791463099,33289.72466355,0.000127,2]
[338611368,1726791473586,333.19,0.0001233,2]
[338611369,1726791477139,500.0,0.00012047,2]
[338611370,1726791503078,200.0,0.00012335,2]
[338611371,1726791504146,1050.0,0.00011,2]
[338611372,1726791506844,150.0,0.00012335,2]
[338611373,1726791510774,150.0,0.0001465,120]
[338611374,1726791518173,568.0738,0.000127,2]
[338611375,1726791547070,4364.13,0.00012332,2]
[338611376,1726791571918,150.0,0.00015414,120]
[338611379,1726791583763,889.0117,0.000127,2]
[338611382,1726791605659,644.02,0.0001222,2]
[338611383,1726791618918,669.56,0.00012338,2]
[338611384,1726791631302,150.0,0.00022153,120]
[338611385,1726791708718,1054.88,0.00012365,2]
[338611386,1726791719208,250.0,0.00012047,2]
[338611387,1726791739566,455.63,0.00012372,2]
[338611388,1726791750747,150.0,0.00018586,120]
[338611389,1726791751488,167.13,0.00012372,2]
[338611391,1726791810781,150.0,0.00019393,120]
[338611392,1726791829040,161.32,0.00012367,2]
[338611393,1726791839266,610.06,0.0001049,2]
[338611394,1726791856838,1350.0,0.00012047,2]
[338611396,1726791920967,250.0,0.00012367,2]
[338611397,1726791931303,150.0,0.00016855,120]
[338611402,1726791957558,168.47539267,0.000127,2]
[338611403,1726791972007,21163.65,0.00012338,2]
[338611404,1726791990769,150.0,0.0001496,120]
[338611409,1726792005015,250.0,0.00012338,2]
[338611415,1726792050727,150.0,0.00017504,120]
[338611416,1726792082657,1263.95050787,0.00022,60]
[338611417,1726792121008,271.39236043,0.00012,2]
[338611422,1726792123152,10327.3120628,0.0001,2]
[338611423,1726792150784,313.3433782,0.000127,2]
[338611430,1726792156490,203.52,0.00012279,2]
[338611431,1726792156966,2000.0,0.00022,60]
[338611432,1726792170752,150.0,0.0002247,120]
[338611443,1726792232229,-610.06,0.00012754,2]
[338611444,1726792232239,-549.21146962,0.00012799,2]
[338611445,1726792232248,-150.0,0.00012799,2]
[338611446,1726792232258,-187.232,0.000128,2]
[338611447,1726792232268,-549.0,0.000128,2]
[338611448,1726792232278,-64.49653038,0.000128,2]
[338611449,1726792232289,-183.12858394,0.000128,2]
[338611450,1726792232299,-13341.80269206,0.000128,2]
[338611454,1726792235142,1000.0,0.00012391,2]
[338611455,1726792238220,-7507.0230265,0.000128,2]
[338611456,1726792238230,-503.0,0.000128,2]
[338611457,1726792238239,-875651.25015246,0.000128,2]
[338611458,1726792238275,-579.09158987,0.000128,2]
[338611459,1726792238759,-1185.34288774,0.000128,2]
[338611460,1726792238772,-3974.52327095,0.000128,2]
[338611461,1726792238783,-250.0,0.000128,2]
[338611463,1726792240026,-6023.54586923,0.000128,2]
[338611464,1726792240039,-1032.75,0.000128,2]
[338611465,1726792240051,-104303.63911286,0.000128,2]
[338611466,1726792240084,-4033.05741135,0.000128,2]
[338611467,1726792240096,-992.57555336,0.000128,2]
[338611468,1726792241007,-261.98581575,0.000128,2]
[338611469,1726792241020,-7783.23451197,0.000128,2]
[338611470,1726792241032,-268.2,0.000128,2]
[338611471,1726792241065,-1284.75061417,0.000128,2]
[338611472,1726792241077,-1306.3948632,0.000128,2]
[338611473,1726792241088,-163907.97150783,0.000128,2]
[338611474,1726792241123,-460.56973873,0.000128,2]
[338611475,1726792241183,-524.66514586,0.000128,2]
[338611476,1726792241194,-1056.7785687,0.000128,2]
[338611477,1726792241206,-1273.216,0.000128,2]
[338611478,1726792241217,-2727.62255209,0.000128,2]
[338611479,1726792241231,-2529.83774123,0.000128,2]
[338611480,1726792241243,-2271.40225877,0.000128,2]
[338611537,1726792243087,-2072.91571764,0.000128,2]
[338611539,1726792243145,-275.452,0.000128,2]
[338611540,1726792243157,-146208.66646014,0.000128,2]
[338611541,1726792243202,-5453.80840066,0.000128,2]
[338611542,1726792243261,-1454.54009728,0.000128,2]
[338611543,1726792243273,-7155.68224347,0.000128,2]
[338611544,1726792243284,-308.479444,0.000128,2]
[338611550,1726792246086,-2826.19400833,0.000128,2]
[338611551,1726792246098,-1026.0,0.000128,2]
[338611552,1726792246109,-643.89780519,0.000128,2]
[338611553,1726792246122,-2265.95848343,0.000128,2]
[338611554,1726792246133,-822.59869064,0.000128,2]
[338611555,1726792246144,-1556.95999997,0.000128,2]
[338611556,1726792246155,-6265.0680978,0.000128,2]
[338611557,1726792246167,-315.00000008,0.000128,2]
[338611558,1726792246184,-10696.24497985,0.000128,2]
[338611559,1726792246195,-258.90026698,0.000128,2]
[338611560,1726792246207,-4481.46949273,0.000128,2]
[338611561,1726792246219,-253.90374581,0.000128,2]
[338611562,1726792246231,-524.90998733,0.000128,2]
[338611563,1726792246243,-360.63358106,0.000128,2]
[338611564,1726792246267,-1863.72000124,0.000128,2]
[338611565,1726792246278,-19999.982619,0.000128,2]
[338611566,1726792246289,-37211.35699527,0.000128,2]
[338611567,1726792246300,-1011.36027468,0.000128,2]
[338611568,1726792246312,-726.52366915,0.000128,2]
[338611569,1726792246325,-965.71228603,0.000128,2]
[338611570,1726792246933,-2570.64532142,0.000128,2]
[338611571,1726792246979,-3567.11591837,0.000128,2]
[338611578,1726792281508,250.0,0.00012391,2]
[338611579,1726792284826,218.16596605,0.00022999,120]
[338611580,1726792290764,150.0,0.00016225,120]
[338611586,1726792350791,150.0,0.00015929,120]
[338611587,1726792386601,165.59,0.00012722,2]
[338611588,1726792391533,227.81,0.00012391,2]
[338611595,1726792416799,549.05,0.00010473,2]
[338611596,1726792417010,549.05,0.00012737,2]
[338611597,1726792461033,6920.36,0.00012559,2]
[338611598,1726792478507,150.18,0.00012459,2]
[338611599,1726792484883,250.0,0.00012459,2]
[338611600,1726792512358,162.87,0.00010959,2]
[338611606,1726792588286,500.0,0.00022999,120]
[338611607,1726792588561,188.59155717,0.00022999,120]
[338611608,1726792633433,250.0,0.00012465,2]
[338611609,1726792769481,259.24947552,0.00022999,120]
[338611610,1726792814504,228.94,0.00012338,2]
[338611611,1726792868485,1000.0,0.0001242,2]
[338611612,1726792967640,494.14,0.00010499,2]
[338611613,1726793019503,167.13,0.00012335,2]
[338611614,1726793024942,450.0,0.00012742,4]
[338611615,1726793037911,227.81,0.00012335,2]
[338611616,1726793072634,250.0,0.00012047,2]
[338611617,1726793085362,16000.0,0.00012,2]
[338611619,1726793165038,250.0,0.00012325,2]
[338611621,1726793259427,171.6656221,0.00012263,30]
[338611622,1726793308646,1050.0,0.00011,2]
[338611624,1726793374982,535.64,0.00012295,2]
[338611625,1726793382406,337.091813,0.00012742,2]
[338611626,1726793395980,337.091813,0.00012742,2]
[338611629,1726793407557,337.091813,0.00012742,2]
[338611631,1726793421407,337.091813,0.00012742,2]
[338611643,1726793432184,-396.48017172,0.00012763,2]
[338611646,1726793432290,-97.65982828,0.00012763,2]
[338611647,1726793432300,-150.0,0.00012767,2]
[338611648,1726793432310,-32.90684604,0.00012799,2]
[338611649,1726793432351,-202.460094,0.00012799,2]
[338611650,1726793432361,-475.766,0.00012799,2]
[338611651,1726793432371,-150.0,0.00012799,2]
[338611652,1726793432380,-503.0,0.000128,2]
[338611653,1726793432389,-525.7633217,0.000128,2]
[338611654,1726793432460,-360.67082886,0.000128,2]
[338611659,1726793438283,-337.091813,0.00012798,2]
[338611660,1726793438294,-664.69550716,0.000128,2]
[338611697,1726793440212,-9453.20580158,0.000128,2]
[338611698,1726793440269,-3145.404275,0.000128,2]
[338611699,1726793440379,-5059.50192414,0.000128,2]
[338611700,1726793440390,-4695.87836017,0.000128,2]
[338611701,1726793440490,-7590.22770359,0.000128,2]
[338611702,1726793440500,-34876.54450009,0.000128,2]
[338611703,1726793440511,-2123.07399969,0.000128,2]
[338611704,1726793440547,-33000.0,0.000128,2]
[338611814,1726793443338,-2683.64741314,0.000128,2]
[338611815,1726793443500,-354.726,0.000128,2]
[338611828,1726793446339,-19641.20032244,0.000128,2]
[338611829,1726793446449,-18066.9,0.000128,2]
[338611832,1726793457594,402.22862393,0.0001235,2]
[338611833,1726793489703,337.091813,0.00012742,2]
[338611834,1726793537169,150.0,0.00012573,2]
[338611835,1726793545590,150.0,0.00012612,2]
[338611836,1726793550311,3076.0268,0.000127,2]
[338611837,1726793554536,1396.68203023,0.000127,2]
[338611838,1726793559588,1396.68203018,0.00012722,2]
[338611839,1726793565809,4118.3362,0.000127,2]
[338611840,1726793572346,321.4139585,0.000127,2]
[338611841,1726793573881,1330.8975,0.000127,2]
[338611842,1726793580038,199.4246973,0.000127,2]
[338611843,1726793593188,167.27,0.00012474,2]
[338611844,1726793604617,1000.0,0.00012057,2]
[338611845,1726793607247,500.0,0.00022999,120]
[338611846,1726793607560,500.0,0.00022999,120]
[338611847,1726793607823,500.0,0.00022999,120]
[338611848,1726793608098,500.0,0.00022999,120]
[338611849,1726793608384,500.0,0.00022999,120]
[338611850,1726793609015,500.0,0.00022999,120]
[338611851,1726793609271,500.0,0.00022999,120]
[338611852,1726793609561,500.0,0.00022999,120]
[338611853,1726793609835,500.0,0.00022999,120]
[338611854,1726793610111,500.0,0.00022999,120]
[338611855,1726793610402,500.0,0.00022999,120]
[338611856,1726793610655,500.0,0.00022999,120]
[338611857,1726793610925,500.0,0.00022999,120]
[338611858,1726793611198,500.0,0.00022999,120]
[338611859,1726793611463,500.0,0.00022999,120]
[338611860,1726793611740,500.0,0.00022999,120]
[338611861,1726793619136,155.0,0.00023,120]
[338611862,1726793638129,155.0,0.00022,60]
[338611863,1726793640877,150.0,0.00015,30]
[338611864,1726793671400,692.85376747,0.00012673,2]
[338611865,1726793695105,41234.6904,0.000127,2]
[338611866,1726793836356,250.0,0.00011963,2]
[338611868,1726793942712,402.22862393,0.00012562,2]
[338611869,1726794063179,10985.74,0.000127,2]
[338611870,1726794119874,1466.51613177,0.000127,2]
[338611871,1726794124870,1466.51613168,0.00012722,2]
[338611872,1726794154287,200.0,0.00012047,2]
[338611873,1726794156556,457.71,0.0001005,2]
[338611874,1726794156785,457.71,0.00012314,2]
[338611875,1726794158847,162.81,0.00011943,2]
[338611876,1726794223565,167.3,0.00012445,2]
[338611877,1726794312938,153.95,0.0001315,120]
[338611878,1726794344543,212.58,0.00010959,2]
[338611879,1726794422735,250.0,0.00011877,2]
[338611880,1726794541482,293.86364086,0.00012743,2]
[338611885,1726794595216,1173.21290538,0.000127,2]
[338611886,1726794600149,1173.21290534,0.00012722,2]
[338611887,1726794607030,159.64,0.00012734,2]
[338611894,1726794631469,-580.1103755,0.00012744,2]
[338611895,1726794631529,-215.8896245,0.00012744,2]
[338611896,1726794631539,-796.0,0.00012744,2]
[338611897,1726794631548,-796.0,0.00012744,2]
[338611898,1726794631557,-796.0,0.00012744,2]
[338611899,1726794631566,-814.97469649,0.00012744,2]
[338611900,1726794631576,-1173.21290534,0.00012744,2]
[338611901,1726794631585,-1173.21290534,0.00012767,2]
[338611902,1726794631594,-2741.8916,0.00012767,2]
[338611903,1726794631603,-464.53083784,0.00012773,2]
[338611904,1726794631614,-320.90069296,0.00012773,2]
[338611905,1726794631623,-1173.21290534,0.00012789,2]
[338611906,1726794631632,-150.0,0.00012789,2]
[338611907,1726794631642,-1902.0,0.0001279,2]
[338611908,1726794631651,-3346.0,0.0001279,2]
[338611909,1726794631660,-1914.0,0.0001279,2]
[338611910,1726794631669,-806.0,0.0001279,2]
[338611911,1726794631678,-248.0,0.0001279,2]
[338611912,1726794631687,-286.59607597,0.0001279,2]
[338611913,1726794631696,-151.75,0.0001279,2]
[338611914,1726794631705,-5866.0,0.00012794,2]
[338611915,1726794631713,-278.873,0.00012794,2]
[338611916,1726794631723,-1771.77329733,0.00012794,2]
[338611917,1726794631734,-11715.22670267,0.00012794,2]
[338611918,1726794631745,-1146.0,0.00012794,2]
[338611919,1726794631754,-2016.43726501,0.00012798,2]
[338611920,1726794631766,-1181.9,0.00012798,2]
[338611921,1726794631775,-1713.60633548,0.00012798,2]
[338611922,1726794631786,-8286.38366452,0.00012798,2]
[338611923,1726794631796,-150.99,0.00012798,2]
[338611924,1726794631805,-657.12,0.00012798,2]
[338611925,1726794631814,-182.96609444,0.00012799,2]
[338611926,1726794631823,-150.0,0.00012799,2]
[338611927,1726794631832,-150.0,0.00012799,7]
[338611928,1726794631841,-150.0,0.00012799,7]
[338611929,1726794631851,-150.0,0.00012799,7]
[338611930,1726794631864,-150.0,0.00012799,7]
[338611931,1726794631874,-192.129,0.000128,2]
[338611932,1726794631884,-556.0,0.000128,2]
[338611933,1726794631893,-3615.42124104,0.000128,2]
[338611934,1726794631904,-3149.336492,0.000128,2]
[338611935,1726794631917,-3327.66179533,0.000128,2]
[338611940,1726794637576,-659.99007456,0.000128,2]
[338611941,1726794637588,-29520.83039707,0.000128,2]
[338611942,1726794637597,-150.99,0.000128,2]
[338611943,1726794637608,-999.99,0.000128,2]
[338611944,1726794637617,-2280.43,0.000128,2]
[338611945,1726794637628,-3233.97,0.000128,2]
[338611946,1726794637641,-299.99,0.000128,2]
[338611947,1726794637650,-8663.98210035,0.000128,2]
[338611948,1726794637693,-7083.69176075,0.000128,2]
[338611949,1726794637702,-554.0,0.000128,2]
[338611950,1726794637711,-1035665.85792157,0.000128,2]
[338611951,1726794637725,-843.27,0.000128,2]
[338611952,1726794637754,-1070.1255496,0.000128,2]
[338611953,1726794637766,-638.24848553,0.000128,2]
[338611958,1726794639412,-787.06211324,0.000128,2]
[338611959,1726794639424,-1758.49529592,0.000128,2]
[338611960,1726794639436,-2666.01834605,0.000128,2]
[338611961,1726794639448,-3756.6679994,0.000128,2]
[338611962,1726794639460,-1213.13686397,0.000128,2]
[338611963,1726794639471,-354.33584849,0.000128,2]
[338611964,1726794639483,-5749.0,0.000128,2]
[338611965,1726794639494,-502.49888056,0.000128,2]
[338611966,1726794639658,-1080.0,0.00012794,2]
[338611967,1726794639668,-1476.83930075,0.000128,2]
[338611968,1726794639724,-531.2423039,0.000128,2]
[338611970,1726794639788,-1035.0,0.000128,2]
[338611971,1726794639799,-2923.62999489,0.000128,2]
[338611985,1726794642427,-446.25,0.000128,2]
[338611986,1726794642488,-27330.35753324,0.000128,2]
[338611987,1726794642499,-1016.18242901,0.000128,2]
[338611988,1726794642549,-694.512008,0.000128,2]
[338611989,1726794642614,-6873.83624364,0.000128,2]
[338611990,1726794642627,-22413.38709535,0.000128,2]
[338611991,1726794642639,-569.53933665,0.000128,2]
[338611992,1726794642679,-301.25385499,0.000128,2]
[338611993,1726794642690,-2072.5,0.000128,2]
[338612000,1726794645373,-779.46259794,0.000128,2]
[338612001,1726794645385,-2709.03931074,0.000128,2]
[338612002,1726794645396,-3137.50000001,0.000128,2]
[338612003,1726794645435,-906.315,0.000128,2]
[338612004,1726794645446,-849.13398569,0.000128,2]
[338612005,1726794645457,-673.60037733,0.000128,2]
[338612006,1726794645468,-300.00089598,0.000128,2]
[338612007,1726794645497,-6827.27872832,0.000128,2]
[338612008,1726794645560,-1735.60549082,0.000128,2]
[338612009,1726794645571,-2450.14324821,0.000128,2]
[338612010,1726794645583,-370.36425328,0.000128,2]
[338612011,1726794645594,-5734.42940032,0.000128,2]
[338612012,1726794645605,-3700.01618862,0.000128,2]
[338612013,1726794645622,-719.95798759,0.000128,2]
[338612014,1726794645634,-31200.00991196,0.000128,2]
[338612015,1726794645645,-29884.72772703,0.000128,2]
[338612016,1726794645656,-611.39999999,0.000128,2]
[338612017,1726794645670,-317.62218849,0.000128,2]
[338612018,1726794645685,-340.81366347,0.000128,2]
[338612019,1726794645696,-17412.24119828,0.000128,2]
[338612020,1726794645708,-856.20926424,0.000128,2]
[338612021,1726794645719,-912.34615092,0.000128,2]
[338612022,1726794658605,1030.51196535,0.00012544,2]
[338612023,1726794672416,150.0,0.00012737,2]
[338612024,1726794685622,260.9922,0.000127,2]
[338612025,1726794691665,802.852,0.00012644,2]
[338612026,1726794703906,1000.0,0.000127,2]
[338612027,1726794706215,423.06,0.00010129,2]
[338612028,1726794706437,423.06,0.00012393,2]
[338612029,1726794722294,1280.5672,0.000127,2]
[338612030,1726794722853,520.09000037,0.00022999,120]
[338612031,1726794736469,150.0,0.000127,2]
[338612032,1726794736495,542.85376746,0.000127,2]
[338612033,1726794752275,182.68,0.00011937,2]
[338612034,1726794762193,500.0,0.00022999,120]
[338612035,1726794762498,500.0,0.00022999,120]
[338612036,1726794762801,470.09349631,0.00022999,120]
[338612037,1726794765159,321.41395849,0.000127,2]
[338612038,1726794774784,167.3,0.00012445,2]
[338612039,1726794788429,11977.2221,0.000127,2]
[338612042,1726794789562,500.0,0.00011164,2]
[338612043,1726794790043,500.0,8.972e-05,2]
[338612044,1726794791576,500.0,0.00011712,2]
[338612045,1726794809966,57638.6884,0.000127,2]